[Event "Titled Tuesday Blitz May 10 Late 2022"]
[White "Suleymanli, Aydin"]
[Black "Boruchovsky, Avital"]
[WhiteFideId "13413937"]
[BlackFideId "2800055"]
[WhiteElo "2481"]
[BlackElo "2469"]
[Result "1-0"]
[Round "06"]
[TimeControl "180+1"]
[Date "2022.05.10"]
[WhiteClock "0:00:09"]
[BlackClock "0:00:02"]

1. e4 {[%clk 0:03:00]}  e6 {[%clk 0:02:57]} 2. d4 {[%clk 0:02:59]}  d5 {[%clk 0:02:57]} 3. Nd2 {[%clk 0:02:59]}  c5 {[%clk 0:02:57]} 4. Ngf3 {[%clk 0:02:57]}  Nf6 {[%clk 0:02:55]} 5. exd5 {[%clk 0:02:55]}  exd5 {[%clk 0:02:56]} 6. Bb5+ {[%clk 0:02:47]}  Bd7 {[%clk 0:02:52]} 7. Qe2+ {[%clk 0:02:43]}  Be7 {[%clk 0:02:49]} 8. dxc5 {[%clk 0:02:36]}  O-O {[%clk 0:02:48]} 9. Nb3 {[%clk 0:02:36]}  Re8 {[%clk 0:02:38]} 10. Be3 {[%clk 0:02:22]}  a6 {[%clk 0:02:19]} 11. Bxd7 {[%clk 0:02:21]}  Nbxd7 {[%clk 0:02:20]} 12. O-O {[%clk 0:02:13]}  Nxc5 {[%clk 0:02:15]} 13. Qd1 {[%clk 0:02:09]}  Nce4 {[%clk 0:02:12]} 14. Bd4 {[%clk 0:02:02]}  Bd6 {[%clk 0:02:05]} 15. h3 {[%clk 0:02:01]}  Qd7 {[%clk 0:02:01]} 16. Re1 {[%clk 0:02:00]}  Qf5 {[%clk 0:01:58]} 17. Qd3 {[%clk 0:01:59]}  Qh5 {[%clk 0:01:48]} 18. Re2 {[%clk 0:01:58]}  h6 {[%clk 0:01:39]} 19. Rae1 {[%clk 0:01:53]}  Re6 {[%clk 0:01:29]} 20. Bxf6 {[%clk 0:01:40]}  Rxf6 {[%clk 0:01:25]} 21. Nbd2 {[%clk 0:01:38]}  Nc5 {[%clk 0:01:05]} 22. Re8+ {[%clk 0:01:33]}  Rxe8 {[%clk 0:01:03]} 23. Rxe8+ {[%clk 0:01:32]}  Bf8 {[%clk 0:01:03]} 24. Qe3 {[%clk 0:01:11]}  Ne6 {[%clk 0:00:59]} 25. Nb3 {[%clk 0:00:49]}  Rg6 {[%clk 0:00:57]} 26. Nfd4 {[%clk 0:00:39]}  Ng5 {[%clk 0:00:43]} 27. Kh2 {[%clk 0:00:30]}  Ne4 {[%clk 0:00:42]} 28. Qf4 {[%clk 0:00:30]}  Nd6 {[%clk 0:00:26]} 29. Rd8 {[%clk 0:00:22]}  Rf6 {[%clk 0:00:26]} 30. Qg3 {[%clk 0:00:22]}  g6 {[%clk 0:00:25]} 31. Nc5 {[%clk 0:00:19]}  Kg7 {[%clk 0:00:11]} 32. Rxf8 {[%clk 0:00:19]}  Ne4 {[%clk 0:00:09]} 33. Nxe4 {[%clk 0:00:16]}  dxe4 {[%clk 0:00:08]} 34. Re8 {[%clk 0:00:15]}  e3 {[%clk 0:00:06]} 35. Rxe3 {[%clk 0:00:14]}  Qc5 {[%clk 0:00:07]} 36. Qe5 {[%clk 0:00:14]}  Qb6 {[%clk 0:00:07]} 37. Rb3 {[%clk 0:00:13]}  Qd8 {[%clk 0:00:05]} 38. Rd3 {[%clk 0:00:11]}  Qc8 {[%clk 0:00:02]} 39. Rf3 {[%clk 0:00:09]} 1-0


[Site "https://www.chess.com"]

[Event "Titled Tuesday Blitz May 10 Late 2022"]
[White "Svicevic, Rastko"]
[Black "Ansh M Shah"]
[WhiteFideId "916315"]
[BlackFideId "25033379"]
[WhiteElo "2132"]
[BlackElo "1819"]
[Result "1-0"]
[Round "06"]
[TimeControl "180+1"]
[Date "2022.05.11"]
[WhiteClock "0:02:22"]
[BlackClock "0:01:39"]

1. d4 {[%clk 0:03:00]}  Nf6 {[%clk 0:02:59]} 2. Bg5 {[%clk 0:02:59]}  g6 {[%clk 0:02:59]} 3. Bxf6 {[%clk 0:02:57]}  exf6 {[%clk 0:03:00]} 4. e3 {[%clk 0:02:56]}  f5 {[%clk 0:03:01]} 5. g3 {[%clk 0:02:57]}  d5 {[%clk 0:03:00]} 6. Bg2 {[%clk 0:02:58]}  c6 {[%clk 0:03:01]} 7. Ne2 {[%clk 0:02:58]}  Bg7 {[%clk 0:03:01]} 8. O-O {[%clk 0:02:57]}  O-O {[%clk 0:03:02]} 9. Nd2 {[%clk 0:02:57]}  Nd7 {[%clk 0:03:02]} 10. c4 {[%clk 0:02:57]}  Nf6 {[%clk 0:03:02]} 11. Qc2 {[%clk 0:02:50]}  Ne4 {[%clk 0:03:02]} 12. c5 {[%clk 0:02:50]}  Be6 {[%clk 0:03:01]} 13. b4 {[%clk 0:02:50]}  a5 {[%clk 0:02:46]} 14. a3 {[%clk 0:02:49]}  b6 {[%clk 0:02:46]} 15. Rfc1 {[%clk 0:02:47]}  axb4 {[%clk 0:02:30]} 16. axb4 {[%clk 0:02:46]}  bxc5 {[%clk 0:02:31]} 17. Nxe4 {[%clk 0:02:43]}  dxe4 {[%clk 0:02:24]} 18. Qxc5 {[%clk 0:02:42]}  Bd5 {[%clk 0:02:21]} 19. Nf4 {[%clk 0:02:33]}  Qd7 {[%clk 0:02:05]} 20. Rxa8 {[%clk 0:02:25]}  Rxa8 {[%clk 0:02:04]} 21. b5 {[%clk 0:02:26]}  Rc8 {[%clk 0:01:39]} 22. Nxd5 {[%clk 0:02:22]} 1-0


[Site "https://www.chess.com"]

[Event "Titled Tuesday Blitz May 10 Late 2022"]
[White "Tanenbaum, Zachary"]
[Black "Hardaway, Brewington"]
[WhiteFideId "2060850"]
[BlackFideId "30941849"]
[WhiteElo "2692"]
[BlackElo "2554"]
[Result "1-0"]
[Round "06"]
[TimeControl "180+1"]
[Date "2022.05.11"]
[WhiteClock "0:00:24"]
[BlackClock "0:00:36"]

1. e4 {[%clk 0:02:59]}  e5 {[%clk 0:02:56]} 2. Nf3 {[%clk 0:03:00]}  Nf6 {[%clk 0:02:53]} 3. Nxe5 {[%clk 0:02:59]}  d6 {[%clk 0:02:53]} 4. Nf3 {[%clk 0:03:00]}  Nxe4 {[%clk 0:02:53]} 5. Nc3 {[%clk 0:03:01]}  Nxc3 {[%clk 0:02:52]} 6. dxc3 {[%clk 0:03:02]}  Be7 {[%clk 0:02:53]} 7. Be3 {[%clk 0:03:03]}  Nd7 {[%clk 0:02:53]} 8. Qd2 {[%clk 0:03:04]}  O-O {[%clk 0:02:52]} 9. O-O-O {[%clk 0:03:04]}  c6 {[%clk 0:02:53]} 10. Bd3 {[%clk 0:03:04]}  Nf6 {[%clk 0:02:46]} 11. Ng5 {[%clk 0:02:58]}  h6 {[%clk 0:02:45]} 12. h4 {[%clk 0:02:57]}  Qa5 {[%clk 0:02:31]} 13. Kb1 {[%clk 0:02:48]}  Ng4 {[%clk 0:02:29]} 14. Bh7+ {[%clk 0:01:49]}  Kh8 {[%clk 0:02:27]} 15. Qd3 {[%clk 0:01:50]}  Ne5 {[%clk 0:02:22]} 16. Qe4 {[%clk 0:01:42]}  f5 {[%clk 0:02:18]} 17. Qf4 {[%clk 0:01:34]}  b5 {[%clk 0:01:56]} 18. Bc5 {[%clk 0:01:18]}  Qc7 {[%clk 0:01:23]} 19. Bd4 {[%clk 0:00:48]}  Bf6 {[%clk 0:01:22]} 20. Qg3 {[%clk 0:00:36]}  Nc4 {[%clk 0:01:18]} 21. Bxf6 {[%clk 0:00:31]}  Rxf6 {[%clk 0:01:17]} 22. Rhe1 {[%clk 0:00:29]}  Bd7 {[%clk 0:01:13]} 23. Re7 {[%clk 0:00:27]}  Re8 {[%clk 0:00:53]} 24. Rxg7 {[%clk 0:00:23]}  Kxg7 {[%clk 0:00:36]} 25. Ne6+ {[%clk 0:00:23]}  Kxh7 {[%clk 0:00:36]} 26. Qg7# {[%clk 0:00:24]} 1-0


[Site "https://www.chess.com"]

[Event "Titled Tuesday Blitz May 10 Late 2022"]
[White "Vasquez Schroeder, Rodrigo"]
[Black "Svane, Rasmus"]
[WhiteFideId "3400042"]
[BlackFideId "4657101"]
[WhiteElo "2567"]
[BlackElo "2674"]
[Result "1-0"]
[Round "06"]
[TimeControl "180+1"]
[Date "2022.05.10"]
[WhiteClock "0:00:12"]
[BlackClock "0:00:03"]

1. e4 {[%clk 0:03:00]}  c6 {[%clk 0:02:58]} 2. Nf3 {[%clk 0:03:00]}  d5 {[%clk 0:02:59]} 3. d3 {[%clk 0:03:01]}  dxe4 {[%clk 0:02:55]} 4. dxe4 {[%clk 0:03:01]}  Qxd1+ {[%clk 0:02:56]} 5. Kxd1 {[%clk 0:03:01]}  Nf6 {[%clk 0:02:56]} 6. Nfd2 {[%clk 0:03:01]}  g5 {[%clk 0:02:55]} 7. f3 {[%clk 0:02:54]}  h5 {[%clk 0:02:52]} 8. h4 {[%clk 0:02:49]}  g4 {[%clk 0:02:47]} 9. Nc4 {[%clk 0:02:48]}  Be6 {[%clk 0:02:42]} 10. Bf4 {[%clk 0:02:43]}  Nbd7 {[%clk 0:02:37]} 11. Nbd2 {[%clk 0:02:43]}  Bh6 {[%clk 0:02:37]} 12. Bg5 {[%clk 0:02:33]}  O-O-O {[%clk 0:02:33]} 13. Ke1 {[%clk 0:02:20]}  gxf3 {[%clk 0:01:57]} 14. gxf3 {[%clk 0:02:19]}  Rdg8 {[%clk 0:01:57]} 15. Bxh6 {[%clk 0:02:11]}  Rxh6 {[%clk 0:01:58]} 16. Kf2 {[%clk 0:02:11]}  Rhg6 {[%clk 0:01:57]} 17. a4 {[%clk 0:02:01]}  Kc7 {[%clk 0:01:51]} 18. a5 {[%clk 0:01:58]}  Ne8 {[%clk 0:01:39]} 19. b4 {[%clk 0:01:55]}  Nd6 {[%clk 0:01:33]} 20. Ne3 {[%clk 0:01:54]}  f5 {[%clk 0:01:30]} 21. exf5 {[%clk 0:01:41]}  Bxf5 {[%clk 0:01:28]} 22. c4 {[%clk 0:01:36]}  c5 {[%clk 0:01:18]} 23. Nd5+ {[%clk 0:01:28]}  Kd8 {[%clk 0:01:18]} 24. Re1 {[%clk 0:01:24]}  R6g7 {[%clk 0:01:15]} 25. b5 {[%clk 0:01:20]}  e5 {[%clk 0:01:08]} 26. Rh2 {[%clk 0:01:04]}  Be6 {[%clk 0:01:08]} 27. Ne3 {[%clk 0:00:58]}  e4 {[%clk 0:00:59]} 28. Rg2 {[%clk 0:00:38]}  exf3 {[%clk 0:00:51]} 29. Rxg7 {[%clk 0:00:35]}  Rxg7 {[%clk 0:00:52]} 30. Kxf3 {[%clk 0:00:33]}  Ne5+ {[%clk 0:00:42]} 31. Kf4 {[%clk 0:00:30]}  Ng6+ {[%clk 0:00:43]} 32. Kg5 {[%clk 0:00:29]}  Ke7 {[%clk 0:00:26]} 33. Kh6 {[%clk 0:00:19]}  Rg8 {[%clk 0:00:19]} 34. Nd5+ {[%clk 0:00:16]}  Kf7 {[%clk 0:00:19]} 35. Bd3 {[%clk 0:00:16]}  Nxh4 {[%clk 0:00:11]} 36. Rf1+ {[%clk 0:00:16]}  Nhf5+ {[%clk 0:00:11]} 37. Kxh5 {[%clk 0:00:12]}  Rg3 {[%clk 0:00:06]} 38. Bxf5 {[%clk 0:00:11]}  Nxf5 {[%clk 0:00:06]} 39. Ne4 {[%clk 0:00:10]}  Rh3+ {[%clk 0:00:03]} 40. Kg4 {[%clk 0:00:11]}  Rd3 {[%clk 0:00:02]} 41. Ng5+ {[%clk 0:00:11]}  Kg6 {[%clk 0:00:02]} 42. Nxe6 {[%clk 0:00:12]}  Rxd5 {[%clk 0:00:02]} 43. Nf4+ {[%clk 0:00:12]}  Kf6 {[%clk 0:00:02]} 44. Nxd5+ {[%clk 0:00:12]}  Ke5 {[%clk 0:00:03]} 1-0


[Site "https://www.chess.com"]

[Event "Titled Tuesday Blitz May 10 Late 2022"]
[White "Vlassov, Nikolai"]
[Black "Clarke, Brandon G I"]
[WhiteFideId "4103360"]
[BlackFideId "400319"]
[WhiteElo "2407"]
[BlackElo "2414"]
[Result "0-1"]
[Round "06"]
[TimeControl "180+1"]
[Date "2022.05.10"]
[WhiteClock "0:00:03"]
[BlackClock "0:00:20"]

1. e4 {[%clk 0:03:00]}  c5 {[%clk 0:03:00]} 2. c3 {[%clk 0:03:00]}  Nf6 {[%clk 0:03:00]} 3. e5 {[%clk 0:02:59]}  Nd5 {[%clk 0:03:00]} 4. d4 {[%clk 0:03:00]}  cxd4 {[%clk 0:03:01]} 5. cxd4 {[%clk 0:03:00]}  d6 {[%clk 0:03:02]} 6. Bc4 {[%clk 0:02:59]}  Nb6 {[%clk 0:02:53]} 7. Bb3 {[%clk 0:02:59]}  dxe5 {[%clk 0:02:46]} 8. Qh5 {[%clk 0:02:59]}  e6 {[%clk 0:02:41]} 9. dxe5 {[%clk 0:02:58]}  Nc6 {[%clk 0:02:40]} 10. Nc3 {[%clk 0:02:56]}  g6 {[%clk 0:02:32]} 11. Qg5 {[%clk 0:02:55]}  Qxg5 {[%clk 0:02:24]} 12. Bxg5 {[%clk 0:02:54]}  Bg7 {[%clk 0:02:21]} 13. Bf6 {[%clk 0:02:48]}  O-O {[%clk 0:02:04]} 14. Bxg7 {[%clk 0:02:43]}  Kxg7 {[%clk 0:02:04]} 15. Nf3 {[%clk 0:02:44]}  Nd7 {[%clk 0:02:02]} 16. O-O-O {[%clk 0:02:32]}  Ndxe5 {[%clk 0:02:02]} 17. Nxe5 {[%clk 0:02:32]}  Nxe5 {[%clk 0:02:03]} 18. Rhe1 {[%clk 0:02:29]}  Ng4 {[%clk 0:01:58]} 19. f3 {[%clk 0:02:19]}  Nf6 {[%clk 0:01:58]} 20. Ne4 {[%clk 0:02:12]}  Nxe4 {[%clk 0:01:55]} 21. Rxe4 {[%clk 0:02:05]}  b6 {[%clk 0:01:54]} 22. Rc4 {[%clk 0:01:59]}  Ba6 {[%clk 0:01:53]} 23. Rcd4 {[%clk 0:01:17]}  Rac8+ {[%clk 0:01:49]} 24. Kb1 {[%clk 0:01:17]}  Rc7 {[%clk 0:01:48]} 25. Rd7 {[%clk 0:01:16]}  Rxd7 {[%clk 0:01:40]} 26. Rxd7 {[%clk 0:01:16]}  Bf1 {[%clk 0:01:41]} 27. g3 {[%clk 0:01:08]}  Bg2 {[%clk 0:01:40]} 28. f4 {[%clk 0:01:04]}  Rc8 {[%clk 0:01:40]} 29. a4 {[%clk 0:00:56]}  Be4+ {[%clk 0:01:37]} 30. Ka2 {[%clk 0:00:55]}  Kf6 {[%clk 0:01:30]} 31. Rxa7 {[%clk 0:00:55]}  Rc5 {[%clk 0:01:26]} 32. Ka3 {[%clk 0:00:49]}  Rh5 {[%clk 0:01:24]} 33. h4 {[%clk 0:00:48]}  Rc5 {[%clk 0:01:24]} 34. Ra6 {[%clk 0:00:45]}  Rc6 {[%clk 0:01:24]} 35. Kb4 {[%clk 0:00:34]}  Rd6 {[%clk 0:01:24]} 36. Bc4 {[%clk 0:00:30]}  h5 {[%clk 0:01:15]} 37. Kc3 {[%clk 0:00:28]}  Bb7 {[%clk 0:01:01]} 38. Ra7 {[%clk 0:00:25]}  Bc6 {[%clk 0:01:01]} 39. b4 {[%clk 0:00:20]}  Be8 {[%clk 0:01:01]} 40. a5 {[%clk 0:00:18]}  bxa5 {[%clk 0:01:01]} 41. bxa5 {[%clk 0:00:18]}  Rd1 {[%clk 0:01:00]} 42. a6 {[%clk 0:00:18]}  Rg1 {[%clk 0:01:00]} 43. Ra8 {[%clk 0:00:17]}  Rxg3+ {[%clk 0:01:00]} 44. Kb4 {[%clk 0:00:16]}  Bc6 {[%clk 0:01:01]} 45. Rc8 {[%clk 0:00:16]}  Be4 {[%clk 0:01:00]} 46. a7 {[%clk 0:00:16]}  Rg4 {[%clk 0:00:59]} 47. a8=Q {[%clk 0:00:12]}  Bxa8 {[%clk 0:00:58]} 48. Rxa8 {[%clk 0:00:13]}  Rxf4 {[%clk 0:00:59]} 49. Kc5 {[%clk 0:00:14]}  Rxh4 {[%clk 0:00:59]} 50. Ra7 {[%clk 0:00:14]}  Rh2 {[%clk 0:00:55]} 51. Bb5 {[%clk 0:00:14]}  Rf2 {[%clk 0:00:40]} 52. Kd4 {[%clk 0:00:14]}  h4 {[%clk 0:00:37]} 53. Ke3 {[%clk 0:00:14]}  Rf5 {[%clk 0:00:37]} 54. Be8 {[%clk 0:00:15]}  Kg7 {[%clk 0:00:37]} 55. Bd7 {[%clk 0:00:15]}  g5 {[%clk 0:00:36]} 56. Ke4 {[%clk 0:00:13]}  Kg6 {[%clk 0:00:31]} 57. Ba4 {[%clk 0:00:11]}  Rf4+ {[%clk 0:00:31]} 58. Ke3 {[%clk 0:00:11]}  h3 {[%clk 0:00:32]} 59. Bc2+ {[%clk 0:00:09]}  f5 {[%clk 0:00:31]} 60. Ra6 {[%clk 0:00:09]}  Kf6 {[%clk 0:00:31]} 61. Ra1 {[%clk 0:00:08]}  Rc4 {[%clk 0:00:26]} 62. Bd3 {[%clk 0:00:07]}  Rc3 {[%clk 0:00:26]} 63. Kd2 {[%clk 0:00:07]}  Rb3 {[%clk 0:00:26]} 64. Ra8 {[%clk 0:00:05]}  g4 {[%clk 0:00:25]} 65. Rh8 {[%clk 0:00:04]}  Rb2+ {[%clk 0:00:20]} 66. Kc3 {[%clk 0:00:04]}  Ra2 {[%clk 0:00:20]} 67. Rh6+ {[%clk 0:00:05]}  Kg5 {[%clk 0:00:20]} 68. Rxe6 {[%clk 0:00:04]}  h2 {[%clk 0:00:20]} 69. Re1 {[%clk 0:00:05]}  g3 {[%clk 0:00:19]} 70. Rf1 {[%clk 0:00:05]}  f4 {[%clk 0:00:19]} 71. Rb1 {[%clk 0:00:04]}  g2 {[%clk 0:00:19]} 72. Rb5+ {[%clk 0:00:03]}  Kh4 {[%clk 0:00:19]} 73. Rf5 {[%clk 0:00:02]}  Ra3+ {[%clk 0:00:19]} 74. Kd4 {[%clk 0:00:02]}  Rxd3+ {[%clk 0:00:20]} 75. Kxd3 {[%clk 0:00:03]}  g1=Q {[%clk 0:00:20]} 76. Rxf4+ {[%clk 0:00:03]}  Kg5 {[%clk 0:00:20]} 0-1


[Site "https://www.chess.com"]

[Event "Titled Tuesday Blitz May 10 Late 2022"]
[White "Voiteanu, Gabriel"]
[Black "Plotnikov, Pavel"]
[WhiteFideId "1208810"]
[BlackFideId "4170342"]
[WhiteElo "2001"]
[BlackElo "2298"]
[Result "0-1"]
[Round "06"]
[TimeControl "180+1"]
[Date "2022.05.11"]
[WhiteClock "0:00:01"]
[BlackClock "0:01:25"]

1. d4 {[%clk 0:02:57]}  c5 {[%clk 0:02:59]} 2. d5 {[%clk 0:02:55]}  e6 {[%clk 0:02:58]} 3. c4 {[%clk 0:02:52]}  Nf6 {[%clk 0:02:57]} 4. Nc3 {[%clk 0:02:52]}  exd5 {[%clk 0:02:56]} 5. cxd5 {[%clk 0:02:52]}  d6 {[%clk 0:02:57]} 6. e4 {[%clk 0:02:52]}  g6 {[%clk 0:02:57]} 7. f4 {[%clk 0:02:52]}  Bg7 {[%clk 0:02:57]} 8. Bb5+ {[%clk 0:02:50]}  Bd7 {[%clk 0:02:56]} 9. Be2 {[%clk 0:02:33]}  O-O {[%clk 0:02:52]} 10. Nf3 {[%clk 0:02:33]}  Re8 {[%clk 0:02:50]} 11. Qc2 {[%clk 0:02:31]}  b5 {[%clk 0:02:47]} 12. Nd2 {[%clk 0:02:17]}  b4 {[%clk 0:02:43]} 13. Nd1 {[%clk 0:02:17]}  Qe7 {[%clk 0:02:36]} 14. Nf2 {[%clk 0:02:15]}  a5 {[%clk 0:02:30]} 15. O-O {[%clk 0:02:13]}  Bh6 {[%clk 0:02:20]} 16. g3 {[%clk 0:02:07]}  Nxd5 {[%clk 0:02:15]} 17. Nc4 {[%clk 0:01:55]}  Bb5 {[%clk 0:01:54]} 18. Nxd6 {[%clk 0:01:22]}  Bxe2 {[%clk 0:01:48]} 19. Nxe8 {[%clk 0:01:21]}  Bxf1 {[%clk 0:01:48]} 20. exd5 {[%clk 0:01:17]}  Bb5 {[%clk 0:01:46]} 21. Bd2 {[%clk 0:00:33]}  Qxe8 {[%clk 0:01:38]} 22. Re1 {[%clk 0:00:32]}  Qf8 {[%clk 0:01:38]} 23. Ng4 {[%clk 0:00:23]}  Bg7 {[%clk 0:01:36]} 24. f5 {[%clk 0:00:22]}  Nd7 {[%clk 0:01:34]} 25. fxg6 {[%clk 0:00:11]}  hxg6 {[%clk 0:01:33]} 26. h4 {[%clk 0:00:10]}  Re8 {[%clk 0:01:30]} 27. Rxe8 {[%clk 0:00:06]}  Qxe8 {[%clk 0:01:31]} 28. h5 {[%clk 0:00:06]}  Bd4+ {[%clk 0:01:32]} 29. Kg2 {[%clk 0:00:02]}  Qe2+ {[%clk 0:01:29]} 30. Kh3 {[%clk 0:00:02]}  Qf1+ {[%clk 0:01:28]} 31. Kh4 {[%clk 0:00:01]}  Bf6+ {[%clk 0:01:24]} 32. Nxf6+ {[%clk 0:00:01]}  Qxf6+ {[%clk 0:01:25]} 0-1


[Site "https://www.chess.com"]

[Event "Titled Tuesday Blitz May 10 Late 2022"]
[White "Yuan, Qingyu"]
[Black "Martinez Alcantara, Jose Eduardo"]
[WhiteFideId "8609772"]
[BlackFideId "3805662"]
[WhiteElo "2359"]
[BlackElo "2690"]
[Result "0-1"]
[Round "06"]
[TimeControl "180+1"]
[Date "2022.05.10"]
[WhiteClock "0:00:03"]
[BlackClock "0:00:08"]

1. e4 {[%clk 0:03:00]}  e5 {[%clk 0:02:58]} 2. Nf3 {[%clk 0:03:00]}  Nc6 {[%clk 0:02:58]} 3. Bc4 {[%clk 0:03:01]}  Bc5 {[%clk 0:02:58]} 4. d3 {[%clk 0:03:01]}  Nf6 {[%clk 0:02:57]} 5. Bg5 {[%clk 0:03:01]}  d6 {[%clk 0:02:54]} 6. a4 {[%clk 0:02:57]}  h6 {[%clk 0:02:52]} 7. Bh4 {[%clk 0:02:57]}  a6 {[%clk 0:02:52]} 8. Nbd2 {[%clk 0:02:50]}  Ba7 {[%clk 0:02:52]} 9. c3 {[%clk 0:02:49]}  g5 {[%clk 0:02:52]} 10. Bg3 {[%clk 0:02:49]}  Qe7 {[%clk 0:02:47]} 11. h3 {[%clk 0:02:40]}  Nh5 {[%clk 0:02:33]} 12. Qe2 {[%clk 0:02:11]}  Qf6 {[%clk 0:02:24]} 13. Nf1 {[%clk 0:01:45]}  Bd7 {[%clk 0:02:11]} 14. Ne3 {[%clk 0:01:44]}  Bxe3 {[%clk 0:02:11]} 15. Qxe3 {[%clk 0:01:43]}  Be6 {[%clk 0:01:57]} 16. b4 {[%clk 0:01:38]}  Bxc4 {[%clk 0:01:55]} 17. dxc4 {[%clk 0:01:38]}  Ne7 {[%clk 0:01:48]} 18. c5 {[%clk 0:01:19]}  O-O {[%clk 0:01:47]} 19. O-O {[%clk 0:01:17]}  Ng6 {[%clk 0:01:47]} 20. Rad1 {[%clk 0:01:15]}  Rfd8 {[%clk 0:01:40]} 21. Bh2 {[%clk 0:01:00]}  Qe7 {[%clk 0:01:31]} 22. cxd6 {[%clk 0:00:49]}  cxd6 {[%clk 0:01:32]} 23. Rd2 {[%clk 0:00:44]}  Nf6 {[%clk 0:01:27]} 24. Rfd1 {[%clk 0:00:44]}  Rac8 {[%clk 0:01:27]} 25. Bg3 {[%clk 0:00:37]}  Kg7 {[%clk 0:01:15]} 26. Nh2 {[%clk 0:00:30]}  Rc4 {[%clk 0:01:04]} 27. f3 {[%clk 0:00:28]}  Qc7 {[%clk 0:00:59]} 28. Rd3 {[%clk 0:00:26]}  a5 {[%clk 0:00:51]} 29. Qd2 {[%clk 0:00:24]}  axb4 {[%clk 0:00:46]} 30. cxb4 {[%clk 0:00:24]}  Qb6+ {[%clk 0:00:46]} 31. Bf2 {[%clk 0:00:24]}  Qxb4 {[%clk 0:00:47]} 32. a5 {[%clk 0:00:18]}  Qxd2 {[%clk 0:00:37]} 33. R3xd2 {[%clk 0:00:18]}  Nf4 {[%clk 0:00:27]} 34. Rb2 {[%clk 0:00:15]}  d5 {[%clk 0:00:23]} 35. exd5 {[%clk 0:00:10]}  Rxd5 {[%clk 0:00:24]} 36. Rxd5 {[%clk 0:00:10]}  Rc1+ {[%clk 0:00:19]} 37. Nf1 {[%clk 0:00:09]}  N6xd5 {[%clk 0:00:19]} 38. h4 {[%clk 0:00:03]}  Kg6 {[%clk 0:00:17]} 39. hxg5 {[%clk 0:00:03]}  hxg5 {[%clk 0:00:18]} 40. g3 {[%clk 0:00:03]}  Nd3 {[%clk 0:00:08]} 41. Rxb7 {[%clk 0:00:03]}  Nc3 {[%clk 0:00:09]} 42. Kg2 {[%clk 0:00:03]}  Rc2 {[%clk 0:00:09]} 43. Rc7 {[%clk 0:00:03]}  Rxf2+ {[%clk 0:00:09]} 44. Kg1 {[%clk 0:00:03]}  Ne2+ {[%clk 0:00:10]} 45. Kh1 {[%clk 0:00:02]}  Rxf1+ {[%clk 0:00:10]} 46. Kg2 {[%clk 0:00:03]}  Rf2+ {[%clk 0:00:11]} 47. Kh3 {[%clk 0:00:03]}  Ng1+ {[%clk 0:00:09]} 48. Kg4 {[%clk 0:00:03]}  f5# {[%clk 0:00:08]} 0-1


[Site "https://www.chess.com"]

[Event "Titled Tuesday Blitz May 10 Late 2022"]
[White "Zhigalko, Sergei"]
[Black "Herrera Reyes, Jose Antonio"]
[WhiteFideId "13502956"]
[BlackFideId "2274914"]
[WhiteElo "2662"]
[BlackElo "2361"]
[Result "1-0"]
[Round "06"]
[TimeControl "180+1"]
[Date "2022.05.10"]
[WhiteClock "0:00:17"]
[BlackClock "0:00:13"]

1. e4 {[%clk 0:03:00]}  c5 {[%clk 0:02:58]} 2. Nf3 {[%clk 0:03:00]}  e6 {[%clk 0:02:57]} 3. c3 {[%clk 0:03:00]}  d5 {[%clk 0:02:46]} 4. e5 {[%clk 0:03:01]}  f6 {[%clk 0:02:41]} 5. d4 {[%clk 0:03:02]}  Nc6 {[%clk 0:02:39]} 6. Bd3 {[%clk 0:03:01]}  f5 {[%clk 0:02:36]} 7. O-O {[%clk 0:03:00]}  g6 {[%clk 0:02:32]} 8. Re1 {[%clk 0:02:47]}  h6 {[%clk 0:02:30]} 9. c4 {[%clk 0:02:24]}  dxc4 {[%clk 0:02:21]} 10. Bxc4 {[%clk 0:02:24]}  Nxd4 {[%clk 0:02:21]} 11. Nxd4 {[%clk 0:02:20]}  Qxd4 {[%clk 0:02:21]} 12. Qb3 {[%clk 0:02:20]}  b5 {[%clk 0:01:52]} 13. Bxb5+ {[%clk 0:01:50]}  Bd7 {[%clk 0:01:51]} 14. Qxe6+ {[%clk 0:01:36]}  Ne7 {[%clk 0:01:47]} 15. Nc3 {[%clk 0:01:31]}  a6 {[%clk 0:01:29]} 16. Be3 {[%clk 0:00:45]}  axb5 {[%clk 0:01:25]} 17. Qf6 {[%clk 0:00:46]}  Qg4 {[%clk 0:01:00]} 18. h3 {[%clk 0:00:45]}  Qh5 {[%clk 0:00:52]} 19. Qxh8 {[%clk 0:00:40]}  O-O-O {[%clk 0:00:49]} 20. Bxc5 {[%clk 0:00:33]}  f4 {[%clk 0:00:46]} 21. Qf6 {[%clk 0:00:29]}  Nf5 {[%clk 0:00:25]} 22. Bxf8 {[%clk 0:00:23]}  f3 {[%clk 0:00:25]} 23. Rac1 {[%clk 0:00:19]}  Kb7 {[%clk 0:00:21]} 24. Nd5 {[%clk 0:00:17]}  Rc8 {[%clk 0:00:14]} 25. Qb6+ {[%clk 0:00:16]}  Ka8 {[%clk 0:00:12]} 26. Rxc8+ {[%clk 0:00:16]}  Bxc8 {[%clk 0:00:13]} 27. Nc7# {[%clk 0:00:17]} 1-0


[Site "https://www.chess.com"]

[Event "Titled Tuesday Blitz May 10 Late 2022"]
[White "talman67"]
[Black "Romanchuk, Viktor"]
[BlackFideId "14109271"]
[WhiteElo "2391"]
[BlackElo "2242"]
[Result "0-1"]
[Round "06"]
[TimeControl "180+1"]
[Date "2022.05.11"]
[WhiteClock "0:00:01"]
[BlackClock "0:00:39"]

1. e4 {[%clk 0:03:00]}  e6 {[%clk 0:02:59]} 2. d4 {[%clk 0:03:00]}  d5 {[%clk 0:02:59]} 3. Nc3 {[%clk 0:03:01]}  dxe4 {[%clk 0:02:59]} 4. Nxe4 {[%clk 0:03:02]}  Nd7 {[%clk 0:02:59]} 5. Nf3 {[%clk 0:03:02]}  Ngf6 {[%clk 0:02:59]} 6. Bd3 {[%clk 0:03:02]}  c5 {[%clk 0:02:59]} 7. O-O {[%clk 0:02:49]}  Nxe4 {[%clk 0:02:57]} 8. Bxe4 {[%clk 0:02:48]}  Nf6 {[%clk 0:02:58]} 9. Bd3 {[%clk 0:02:46]}  cxd4 {[%clk 0:02:58]} 10. Nxd4 {[%clk 0:02:44]}  Bc5 {[%clk 0:02:59]} 11. Nf3 {[%clk 0:02:28]}  O-O {[%clk 0:02:57]} 12. Bg5 {[%clk 0:02:27]}  b6 {[%clk 0:02:57]} 13. Qe2 {[%clk 0:02:21]}  Bb7 {[%clk 0:02:58]} 14. Rad1 {[%clk 0:02:22]}  Qc7 {[%clk 0:02:58]} 15. Ne5 {[%clk 0:02:22]}  Rfd8 {[%clk 0:02:57]} 16. c3 {[%clk 0:02:13]}  Rd5 {[%clk 0:02:53]} 17. Rfe1 {[%clk 0:02:10]}  Rad8 {[%clk 0:02:52]} 18. b4 {[%clk 0:01:47]}  Be7 {[%clk 0:02:41]} 19. c4 {[%clk 0:01:37]}  Rd4 {[%clk 0:02:16]} 20. a3 {[%clk 0:01:37]}  a5 {[%clk 0:02:01]} 21. Nxf7 {[%clk 0:01:05]}  Kxf7 {[%clk 0:01:45]} 22. Qxe6+ {[%clk 0:01:05]}  Kf8 {[%clk 0:01:45]} 23. Bxf6 {[%clk 0:00:24]}  Bxf6 {[%clk 0:01:42]} 24. Bxh7 {[%clk 0:00:24]}  Qf7 {[%clk 0:01:39]} 25. Rxd4 {[%clk 0:00:25]}  Rxd4 {[%clk 0:01:32]} 26. Qxb6 {[%clk 0:00:24]}  Rd7 {[%clk 0:00:54]} 27. Bf5 {[%clk 0:00:20]}  Bd4 {[%clk 0:00:51]} 28. Qb5 {[%clk 0:00:09]}  Re7 {[%clk 0:00:47]} 29. Rd1 {[%clk 0:00:04]}  Re5 {[%clk 0:00:41]} 30. Qd7 {[%clk 0:00:02]}  Bxf2+ {[%clk 0:00:40]} 31. Kxf2 {[%clk 0:00:01]}  Qxf5+ {[%clk 0:00:39]} 0-1


[Site "https://www.chess.com"]